[Event "Austria Championship Blitz 2024"]
[Site "Innsbruck"]
[Date "2024.06.01"]
[Round "10.5"]
[White "Cafasso, Elia"]
[Black "Lerch, Johannes"]
[Result "1/2-1/2"]
[ECO "C41"]
[WhiteElo "2178"]
[BlackElo "2208"]
[Annotator "RC"]
[PlyCount "123"]
[EventDate "2024.06.01"]
[EventType "swiss"]
[EventCountry "AUT"]
[SourceTitle "playchess.com"]
[Source "ChessBase"]
[SourceQuality "1"]
[TimeControl "180+2"]

1. e4 {[%emt 0:00:01]} d6 {[%emt 0:00:03]} 2. d4 {[%emt 0:00:01]} Nf6 {[%emt 0:00:01]} 3. Nc3 {[%emt 0:00:01]} e5 {[%emt 0:00:00]} 4. Nf3 {[%emt 0:00:03]} Nbd7 {[%emt 0:00:01]} 5. Bc4 {[%emt 0:00:04]} Be7 {[%emt 0:00:01]} 6. O-O {[%emt 0:00:02]} O-O {[%emt 0:00:01]} 7. a4 {[%emt 0:00:01]} a6 {[%emt 0:00:02]} 8. Re1 {[%emt 0:00:01]} b6 {[%emt 0:00:01]} 9. h3 {[%emt 0:00:05]} Bb7 {[%emt 0:00:01]} 10. Ba2 {[%emt 0:00:03]} c6 {[%emt 0:00:05]} 11. Be3 {[%emt 0:00:07]} b5 {[%emt 0:00:02]} 12. d5 {[%emt 0:00:28]} cxd5 {[%emt 0:00:30]} 13. Nxd5 {[%emt 0:00:18]} Nxe4 {[%emt 0:00:18]} 14. axb5 {[%emt 0:00:02]} axb5 {[%emt 0:00:02]} 15. Qd3 {[%emt 0:00:02]} Nef6 {[%emt 0:00:12]} 16. Qxb5 {[%emt 0:00:15]} Rb8 {[%emt 0:00:34]} 17. Nxe7+ {[%emt 0:00:21]} Qxe7 {[%emt 0:00:01]} 18. Qe2 {[%emt 0:00:05]} d5 {[%emt 0:00:06]} 19. Bg5 {[%emt 0:00:04]} Rfe8 {[%emt 0:00:11]} 20. c3 {[%emt 0:00:10]} h6 {[%emt 0:00:01]} 21. Bh4 {[%emt 0:00:00]} Qd6 {[%emt 0:00:09]} 22. Rad1 {[%emt 0:00:06]} Qc5 {[%emt 0:00:20]} 23. Bg3 {[%emt 0:00:06]} Ra8 {[%emt 0:00:06]} 24. Bb1 {[%emt 0:00:03]} e4 {[%emt 0:00:06]} 25. Nd4 {[%emt 0:00:01]} Nb6 {[%emt 0:00:09]} 26. Nf5 {[%emt 0:00:07]} Bc8 {[%emt 0:00:05]} 27. Nd6 {[%emt 0:00:08]} Re6 {[%emt 0:00:06]} 28. Nxc8 {[%emt 0:00:09]} Rxc8 {[%emt 0:00:01]} 29. Qe3 {[%emt 0:00:07]} Qxe3 {[%emt 0:00:05]} 30. Rxe3 {[%emt 0:00:01]} Nc4 {[%emt 0:00:00]} 31. Re2 {[%emt 0:00:02]} Rb6 {[%emt 0:00:03]} 32. Bh4 {[%emt 0:00:07]} Rxb2 {[%emt 0:00:09]} 33. Rxb2 {[%emt 0:00:12]} Nxb2 {[%emt 0:00:01]} 34. Rd2 {[%emt 0:00:01]} g5 {[%emt 0:00:13]} 35. Bg3 {[%emt 0:00:09]} Na4 {[%emt 0:00:03]} 36. Be5 {[%emt 0:00:03]} Nd7 {[%emt 0:00:06]} 37. Bd4 {[%emt 0:00:01]} Nxc3 {[%emt 0:00:11]} 38. Bc2 {[%emt 0:00:09]} Nb5 {[%emt 0:00:02]} 39. Be3 {[%emt 0:00:04]} d4 {[%emt 0:00:02]} 40. Bxd4 {[%emt 0:00:02]} Nxd4 {[%emt 0:00:04]} 41. Bxe4 {[%emt 0:00:12]} Rc1+ {[%emt 0:00:05]} 42. Kh2 {[%emt 0:00:01]} Nf6 {[%emt 0:00:03]} 43. Rxd4 {[%emt 0:00:01]} Nxe4 {[%emt 0:00:02]} 44. Rxe4 {[%emt 0:00:01]} Rc6 {[%emt 0:00:01]} 45. f3 {[%emt 0:00:02]} Kg7 {[%emt 0:00:00]} 46. Rb4 {[%emt 0:00:01]} Rd6 {[%emt 0:00:01]} 47. h4 {[%emt 0:00:01]} Rc6 {[%emt 0:00:01]} 48. hxg5 hxg5 {[%emt 0:00:01]} 49. Kg3 {[%emt 0:00:01]} Kg6 {[%emt 0:00:01]} 50. Rb5 {[%emt 0:00:01]} f6 {[%emt 0:00:00]} 51. Rb7 {[%emt 0:00:31]} Ra6 52. Rb4 Ra5 53. Rb2 {[%emt 0:00:00]} Ra3 {[%emt 0:00:01]} 54. Re2 {[%emt 0:00:00]} Ra4 {[%emt 0:00:01]} 55. Re3 {[%emt 0:00:00]} f5 {[%emt 0:00:01]} 56. Rb3 {[%emt 0:00:00]} Ra2 {[%emt 0:00:04]} 57. Rb6+ {[%emt 0:00:00]} Kh5 {[%emt 0:00:01]} 58. Kh3 {[%emt 0:00:00]} g4+ {[%emt 0:00:06]} 59. fxg4+ {[%emt 0:00:00]} fxg4+ {[%emt 0:00:00]} 60. Kh2 {[%emt 0:00:00]} Ra3 {[%emt 0:00:03]} 61. Rb8 {[%emt 0:00:00]} Kg5 {[%emt 0:00:07]} 62. Rb4 {[%emt 0:00:00]} 1/2-1/2

[Event "Austria Championship Blitz 2024"]
[Site "Innsbruck"]
[Date "2024.06.01"]
[Round "10.6"]
[White "Gschiel, Alexander"]
[Black "Binder, Moriz"]
[Result "1-0"]
[ECO "E05"]
[WhiteElo "2355"]
[BlackElo "2210"]
[Annotator "RC"]
[PlyCount "77"]
[EventDate "2024.06.01"]
[EventType "swiss"]
[EventCountry "AUT"]
[SourceTitle "playchess.com"]
[Source "ChessBase"]
[SourceQuality "1"]
[TimeControl "180+2"]

1. d4 {[%emt 0:00:01]} Nf6 {[%emt 0:00:01]} 2. c4 {[%emt 0:00:01]} e6 {[%emt 0:00:01]} 3. Nf3 {[%emt 0:00:01]} d5 {[%emt 0:00:01]} 4. g3 {[%emt 0:00:01]} Be7 {[%emt 0:00:02]} 5. Bg2 {[%emt 0:00:00]} O-O {[%emt 0:00:01]} 6. O-O {[%emt 0:00:02]} dxc4 {[%emt 0:00:01]} 7. Qc2 {[%emt 0:00:02]} b5 {[%emt 0:00:01]} 8. a4 {[%emt 0:00:04]} b4 {[%emt 0:00:01]} 9. Ne5 {[%emt 0:00:05]} Nd5 {[%emt 0:00:09]} 10. Nxc4 {[%emt 0:00:03]} Nd7 {[%emt 0:00:12]} 11. Na5 {[%emt 0:00:12]} c5 {[%emt 0:00:27]} 12. Nc6 {[%emt 0:00:02]} Qe8 {[%emt 0:00:01]} 13. Nxe7+ Qxe7 {[%emt 0:00:02]} 14. e4 {[%emt 0:00:21]} N5f6 {[%emt 0:01:07]} 15. dxc5 {[%emt 0:00:01]} Qxc5 {[%emt 0:00:25]} 16. Qb3 {[%emt 0:00:10]} Ba6 {[%emt 0:00:07]} 17. Be3 {[%emt 0:00:02]} Qc4 {[%emt 0:00:09]} 18. Qxc4 {[%emt 0:00:04]} Bxc4 {[%emt 0:00:00]} 19. Rc1 {[%emt 0:00:02]} Rfc8 {[%emt 0:00:15]} 20. Nd2 {[%emt 0:00:02]} Bd3 {[%emt 0:00:08]} 21. Rxc8+ {[%emt 0:00:16]} Rxc8 {[%emt 0:00:00]} 22. Bxa7 {[%emt 0:02:14]} Rc2 {[%emt 0:00:01]} 23. Be3 {[%emt 0:00:00]} Rxb2 {[%emt 0:00:03]} 24. a5 {[%emt 0:00:00]} Ba6 {[%emt 0:00:02]} 25. Bf1 {[%emt 0:00:00]} Nb8 {[%emt 0:00:08]} 26. Rc1 {[%emt 0:00:00]} h6 {[%emt 0:00:02]} 27. Bxa6 Nxa6 {[%emt 0:00:01]} 28. Rc6 {[%emt 0:00:00]} Ng4 {[%emt 0:00:11]} 29. Nf1 {[%emt 0:00:00]} Nxe3 {[%emt 0:00:08]} 30. Nxe3 {[%emt 0:00:00]} Ra2 {[%emt 0:00:05]} 31. Rxa6 {[%emt 0:00:00]} b3 {[%emt 0:00:01]} 32. Rb6 {[%emt 0:00:00]} b2 {[%emt 0:00:01]} 33. Kg2 {[%emt 0:00:00]} g5 {[%emt 0:00:04]} 34. Nc4 {[%emt 0:00:00]} Ra4 {[%emt 0:00:04]} 35. Nxb2 Rxa5 36. Nc4 {[%emt 0:00:00]} Ra4 {[%emt 0:00:01]} 37. Nd6 {[%emt 0:00:00]} Rd4 {[%emt 0:00:03]} 38. e5 {[%emt 0:00:00]} Rd5 {[%emt 0:00:05]} 39. Rb5 {[%emt 0:00:00]} 1-0

[Event "Austria Championship Blitz 2024"]
[Site "Innsbruck"]
[Date "2024.06.01"]
[Round "10.7"]
[White "Horvath, Reka"]
[Black "Hengl, Philip"]
[Result "0-1"]
[ECO "B11"]
[WhiteElo "2009"]
[BlackElo "2173"]
[Annotator "RC"]
[PlyCount "104"]
[EventDate "2024.06.01"]
[EventType "swiss"]
[EventCountry "AUT"]
[SourceTitle "playchess.com"]
[Source "ChessBase"]
[SourceQuality "1"]
[TimeControl "180+2"]

1. e4 {[%emt 0:00:02]} c6 {[%emt 0:00:00]} 2. Nc3 {[%emt 0:03:04]} d5 3. Nf3 {[%emt 0:00:00]} Bg4 {[%emt 0:00:03]} 4. h3 {[%emt 0:00:00]} Bxf3 5. Qxf3 {[%emt 0:00:00]} e6 {[%emt 0:00:01]} 6. d4 {[%emt 0:00:00]} dxe4 {[%emt 0:00:03]} 7. Qxe4 {[%emt 0:00:00]} Nf6 {[%emt 0:00:02]} 8. Qd3 {[%emt 0:00:00]} Be7 {[%emt 0:00:02]} 9. Bf4 {[%emt 0:00:00]} O-O {[%emt 0:00:05]} 10. O-O-O {[%emt 0:00:00]} Nd5 {[%emt 0:00:18]} 11. Be5 {[%emt 0:00:00]} Bf6 {[%emt 0:00:03]} 12. Qg3 {[%emt 0:00:00]} Nxc3 {[%emt 0:00:07]} 13. Qxc3 {[%emt 0:00:00]} Nd7 {[%emt 0:00:01]} 14. Bd6 {[%emt 0:00:00]} Be7 {[%emt 0:00:03]} 15. Bf4 {[%emt 0:00:00]} Bg5 {[%emt 0:00:02]} 16. Qd2 {[%emt 0:00:00]} Bxf4 {[%emt 0:00:02]} 17. Qxf4 {[%emt 0:00:00]} Nf6 {[%emt 0:00:06]} 18. Bd3 {[%emt 0:00:00]} Qa5 {[%emt 0:00:04]} 19. Kb1 {[%emt 0:00:00]} Rfd8 {[%emt 0:00:12]} 20. Rhe1 {[%emt 0:00:00]} Qb6 {[%emt 0:00:07]} 21. Re5 {[%emt 0:00:00]} Rd5 {[%emt 0:00:21]} 22. Rg5 {[%emt 0:00:00]} Rxg5 {[%emt 0:00:04]} 23. Qxg5 {[%emt 0:00:00]} Rd8 {[%emt 0:00:06]} 24. c3 {[%emt 0:00:00]} h6 {[%emt 0:00:07]} 25. Qh4 {[%emt 0:00:00]} a5 {[%emt 0:00:09]} 26. Bc2 {[%emt 0:00:00]} c5 {[%emt 0:00:18]} 27. dxc5 {[%emt 0:00:00]} Rxd1+ {[%emt 0:00:01]} 28. Bxd1 {[%emt 0:00:00]} Qxc5 {[%emt 0:00:01]} 29. Bc2 {[%emt 0:00:00]} b6 {[%emt 0:00:09]} 30. Qg3 {[%emt 0:00:11]} e5 {[%emt 0:00:14]} 31. Qf3 {[%emt 0:00:08]} Qd5 {[%emt 0:00:24]} 32. Qxd5 Nxd5 {[%emt 0:00:01]} 33. Be4 {[%emt 0:00:21]} Nf4 {[%emt 0:00:03]} 34. Kc2 {[%emt 0:00:05]} Kf8 {[%emt 0:00:02]} 35. h4 {[%emt 0:00:09]} Ke7 {[%emt 0:00:08]} 36. g3 {[%emt 0:00:02]} Ne6 {[%emt 0:00:01]} 37. Kd2 {[%emt 0:00:05]} g6 {[%emt 0:00:01]} 38. Ke3 {[%emt 0:00:02]} f5 {[%emt 0:00:02]} 39. Bd5 {[%emt 0:00:01]} Nc7 {[%emt 0:00:15]} 40. Bc6 {[%emt 0:00:03]} Kd6 {[%emt 0:00:02]} 41. Bg2 {[%emt 0:00:02]} Ne6 {[%emt 0:00:05]} 42. b3 {[%emt 0:00:02]} Nc5 {[%emt 0:00:01]} 43. b4 {[%emt 0:00:05]} Na4 {[%emt 0:00:03]} 44. Kd3 {[%emt 0:00:02]} Nb2+ {[%emt 0:00:04]} 45. Kc2 {[%emt 0:00:01]} Nc4 {[%emt 0:00:01]} 46. Bf1 {[%emt 0:00:02]} Kd5 {[%emt 0:00:04]} 47. Kb3 {[%emt 0:00:01]} Nd2+ {[%emt 0:00:01]} 48. Kc2 {[%emt 0:00:01]} Nxf1 {[%emt 0:00:01]} 49. Kd3 {[%emt 0:00:02]} axb4 {[%emt 0:00:04]} 50. cxb4 {[%emt 0:00:01]} Nh2 {[%emt 0:00:03]} 51. Ke3 {[%emt 0:00:03]} Ng4+ {[%emt 0:00:01]} 52. Kd3 {[%emt 0:00:01]} Nxf2+ {[%emt 0:00:28]} 0-1

[Event "Austria Championship Blitz 2024"]
[Site "Innsbruck"]
[Date "2024.06.01"]
[Round "10.8"]
[White "Schnegg, Daniel"]
[Black "Myagmarsuren, Mandukhai"]
[Result "0-1"]
[ECO "A03"]
[WhiteElo "2115"]
[BlackElo "2092"]
[Annotator "RC"]
[PlyCount "78"]
[EventDate "2024.06.01"]
[EventType "swiss"]
[EventCountry "AUT"]
[SourceTitle "playchess.com"]
[Source "ChessBase"]
[SourceQuality "1"]
[TimeControl "180+2"]

1. f4 {[%emt 0:00:01]} d5 {[%emt 0:00:04]} 2. b3 {[%emt 0:00:02]} c5 {[%emt 0:00:07]} 3. e3 {[%emt 0:00:01]} Nc6 {[%emt 0:00:02]} 4. Bb2 {[%emt 0:00:01]} Nf6 {[%emt 0:00:05]} 5. Nf3 {[%emt 0:00:02]} Bg4 {[%emt 0:00:07]} 6. Be2 {[%emt 0:00:04]} g6 {[%emt 0:00:10]} 7. O-O {[%emt 0:00:02]} Bg7 {[%emt 0:00:01]} 8. d3 {[%emt 0:00:10]} O-O {[%emt 0:00:03]} 9. Nbd2 {[%emt 0:00:01]} Re8 {[%emt 0:00:06]} 10. Ne5 {[%emt 0:00:06]} Bxe2 {[%emt 0:00:04]} 11. Qxe2 {[%emt 0:00:01]} d4 {[%emt 0:00:02]} 12. Nxc6 {[%emt 0:00:07]} bxc6 {[%emt 0:00:01]} 13. e4 {[%emt 0:00:07]} e5 {[%emt 0:00:18]} 14. Nc4 {[%emt 0:00:06]} exf4 {[%emt 0:00:05]} 15. Rxf4 {[%emt 0:00:04]} Nd5 {[%emt 0:00:07]} 16. Rf3 {[%emt 0:00:11]} Bh6 {[%emt 0:00:03]} 17. Bc1 {[%emt 0:00:10]} Nc3 {[%emt 0:00:33]} 18. Qf1 {[%emt 0:00:06]} Bxc1 {[%emt 0:00:13]} 19. Rxc1 {[%emt 0:00:01]} f5 {[%emt 0:00:06]} 20. e5 {[%emt 0:00:06]} a5 {[%emt 0:00:06]} 21. a4 {[%emt 0:00:02]} Ra7 {[%emt 0:00:12]} 22. g3 {[%emt 0:00:03]} Rae7 {[%emt 0:00:04]} 23. Qg2 {[%emt 0:00:04]} Rxe5 {[%emt 0:00:02]} 24. Nxe5 {[%emt 0:00:03]} Rxe5 {[%emt 0:00:01]} 25. Rf2 {[%emt 0:00:14]} Nd5 {[%emt 0:00:01]} 26. Re2 {[%emt 0:00:04]} Qe7 {[%emt 0:00:11]} 27. Rce1 {[%emt 0:00:04]} Ne3 {[%emt 0:00:24]} 28. Qxc6 {[%emt 0:00:03]} Re6 {[%emt 0:00:01]} 29. Qa8+ {[%emt 0:00:05]} Kg7 {[%emt 0:00:01]} 30. Qxa5 {[%emt 0:00:08]} f4 {[%emt 0:00:01]} 31. gxf4 {[%emt 0:00:11]} Qh4 {[%emt 0:00:03]} 32. Qc7+ {[%emt 0:00:03]} Kh6 {[%emt 0:00:12]} 33. f5 {[%emt 0:00:04]} gxf5 {[%emt 0:00:08]} 34. Kh1 {[%emt 0:00:07]} Rg6 {[%emt 0:00:01]} 35. Rg1 {[%emt 0:00:15]} Rxg1+ {[%emt 0:00:06]} 36. Kxg1 {[%emt 0:00:01]} Qg4+ {[%emt 0:00:01]} 37. Qg3 {[%emt 0:00:08]} Qxe2 {[%emt 0:00:01]} 38. Qf4+ {[%emt 0:00:03]} Kh5 {[%emt 0:00:04]} 39. Qf2 {[%emt 0:00:12]} Qd1+ {[%emt 0:00:02]} 0-1

[Event "Austria Championship Blitz 2024"]
[Site "Innsbruck"]
[Date "2024.06.01"]
[Round "10.9"]
[White "Wetscher, Wolfgang"]
[Black "Polterauer, Chiara"]
[Result "1/2-1/2"]
[ECO "A00"]
[WhiteElo "1937"]
[BlackElo "2136"]
[Annotator "RC"]
[PlyCount "100"]
[EventDate "2024.06.01"]
[EventType "swiss"]
[EventCountry "AUT"]
[SourceTitle "playchess.com"]
[Source "ChessBase"]
[SourceQuality "1"]
[TimeControl "180+2"]

1. c3 {[%emt 0:00:00]} c5 {[%emt 0:00:04]} 2. Qc2 {[%emt 0:00:01]} e5 {[%emt 0:00:02]} 3. d3 {[%emt 0:00:01]} d5 {[%emt 0:00:01]} 4. Nd2 {[%emt 0:00:01]} Nf6 {[%emt 0:00:01]} 5. e4 {[%emt 0:00:00]} Be6 {[%emt 0:00:03]} 6. Ngf3 {[%emt 0:00:01]} Nc6 {[%emt 0:00:02]} 7. Be2 {[%emt 0:00:01]} h6 {[%emt 0:00:01]} 8. h3 {[%emt 0:00:01]} Bd6 {[%emt 0:00:02]} 9. Nf1 {[%emt 0:00:03]} Ne7 {[%emt 0:00:09]} 10. Ng3 {[%emt 0:00:01]} Ng6 {[%emt 0:00:04]} 11. Bd2 {[%emt 0:00:05]} d4 {[%emt 0:00:07]} 12. c4 {[%emt 0:00:06]} O-O {[%emt 0:00:07]} 13. O-O {[%emt 0:00:03]} a6 {[%emt 0:00:01]} 14. a3 {[%emt 0:00:02]} b5 {[%emt 0:00:04]} 15. b3 {[%emt 0:00:00]} Qd7 {[%emt 0:00:09]} 16. Nh2 {[%emt 0:00:02]} Rab8 {[%emt 0:00:10]} 17. Rfb1 {[%emt 0:00:02]} Rb7 {[%emt 0:00:01]} 18. Qd1 {[%emt 0:00:09]} Rfb8 {[%emt 0:00:07]} 19. Ng4 {[%emt 0:00:10]} Nxg4 {[%emt 0:00:01]} 20. Bxg4 {[%emt 0:00:01]} Bxg4 {[%emt 0:00:04]} 21. hxg4 {[%emt 0:00:02]} bxc4 {[%emt 0:00:05]} 22. bxc4 {[%emt 0:00:02]} Rxb1 {[%emt 0:00:05]} 23. Rxb1 {[%emt 0:00:01]} Rxb1 {[%emt 0:00:01]} 24. Qxb1 {[%emt 0:00:01]} Qxg4 {[%emt 0:00:06]} 25. Nf5 {[%emt 0:00:04]} Bf8 {[%emt 0:00:38]} 26. g3 {[%emt 0:00:24]} Nf4 {[%emt 0:00:02]} 27. Bxf4 {[%emt 0:00:14]} exf4 {[%emt 0:00:00]} 28. Kg2 {[%emt 0:00:29]} f3+ {[%emt 0:00:10]} 29. Kg1 {[%emt 0:00:24]} Qh3 {[%emt 0:00:06]} 30. Nh4 {[%emt 0:00:17]} g5 {[%emt 0:00:25]} 31. Nxf3 {[%emt 0:00:03]} Qg4 {[%emt 0:00:05]} 32. Kg2 {[%emt 0:00:05]} h5 {[%emt 0:00:01]} 33. Nh2 {[%emt 0:00:12]} Qe2 {[%emt 0:00:07]} 34. Nf3 {[%emt 0:00:22]} f6 {[%emt 0:00:24]} 35. Ng1 {[%emt 0:00:03]} Qd2 {[%emt 0:00:06]} 36. Qb6 {[%emt 0:00:19]} Qxd3 {[%emt 0:00:05]} 37. Qxf6 {[%emt 0:00:07]} Qxe4+ {[%emt 0:00:01]} 38. f3 {[%emt 0:00:05]} Qc2+ {[%emt 0:00:04]} 39. Kh1 {[%emt 0:00:00]} Qxc4 {[%emt 0:00:03]} 40. Qxg5+ {[%emt 0:00:02]} Bg7 {[%emt 0:00:03]} 41. Qxh5 {[%emt 0:00:03]} d3 {[%emt 0:00:04]} 42. Qe8+ {[%emt 0:00:02]} Kh7 {[%emt 0:00:02]} 43. Qh5+ {[%emt 0:00:01]} Kg8 {[%emt 0:00:04]} 44. Qe8+ {[%emt 0:00:01]} Kh7 {[%emt 0:00:07]} 45. Qh5+ {[%emt 0:00:01]} Bh6 {[%emt 0:00:00]} 46. Qf5+ {[%emt 0:00:00]} Kg7 {[%emt 0:00:02]} 47. Qd7+ {[%emt 0:00:03]} Kg6 {[%emt 0:00:04]} 48. Qd6+ {[%emt 0:00:01]} Kh7 {[%emt 0:00:01]} 49. Qd7+ {[%emt 0:00:22]} Bg7 {[%emt 0:00:02]} 50. Qh3+ {[%emt 0:00:00]} Kg8 {[%emt 0:00:01]} 1/2-1/2

[Event "Austria Championship Blitz 2024"]
[Site "Innsbruck"]
[Date "2024.06.01"]
[Round "10.10"]
[White "Tumanyan, Gor"]
[Black "Kienboeck, Benjamin"]
[Result "0-1"]
[ECO "B13"]
[WhiteElo "1992"]
[BlackElo "2187"]
[Annotator "RC"]
[PlyCount "64"]
[EventDate "2024.06.01"]
[EventType "swiss"]
[EventCountry "AUT"]
[SourceTitle "playchess.com"]
[Source "ChessBase"]
[SourceQuality "1"]
[TimeControl "180+2"]

1. e4 {[%emt 0:00:02]} c6 {[%emt 0:00:01]} 2. d4 {[%emt 0:00:01]} d5 {[%emt 0:00:01]} 3. exd5 {[%emt 0:00:01]} cxd5 {[%emt 0:00:01]} 4. Nf3 {[%emt 0:00:01]} Nf6 {[%emt 0:00:03]} 5. Ne5 {[%emt 0:00:02]} Nc6 {[%emt 0:00:07]} 6. Bb5 {[%emt 0:00:02]} Bd7 {[%emt 0:00:02]} 7. Nxd7 {[%emt 0:00:08]} Qxd7 {[%emt 0:00:03]} 8. O-O {[%emt 0:00:02]} e6 {[%emt 0:00:01]} 9. c3 {[%emt 0:00:01]} Bd6 {[%emt 0:00:03]} 10. Nd2 {[%emt 0:00:06]} a6 {[%emt 0:00:10]} 11. Bd3 {[%emt 0:00:02]} Qc7 {[%emt 0:00:03]} 12. Nf3 {[%emt 0:00:01]} Ne7 {[%emt 0:00:04]} 13. Bg5 {[%emt 0:00:31]} Ng6 {[%emt 0:00:01]} 14. Rc1 {[%emt 0:01:04]} Ne4 {[%emt 0:00:14]} 15. Qa4+ {[%emt 0:00:23]} Kf8 {[%emt 0:00:37]} 16. Be3 {[%emt 0:00:02]} f6 {[%emt 0:00:24]} 17. c4 {[%emt 0:00:10]} Qd8 {[%emt 0:00:29]} 18. c5 {[%emt 0:00:25]} Bc7 {[%emt 0:00:13]} 19. Rfd1 {[%emt 0:00:14]} Kf7 {[%emt 0:00:16]} 20. Bxe4 dxe4 {[%emt 0:00:01]} 21. Nd2 {[%emt 0:00:07]} Qd5 {[%emt 0:00:21]} 22. c6 {[%emt 0:00:14]} b5 {[%emt 0:00:04]} 23. Qb3 {[%emt 0:00:02]} f5 {[%emt 0:00:10]} 24. Rc5 {[%emt 0:00:00]} Qxb3 {[%emt 0:00:16]} 25. Nxb3 {[%emt 0:00:02]} Bd6 {[%emt 0:00:03]} 26. Rc2 {[%emt 0:00:02]} Rac8 {[%emt 0:00:02]} 27. Na5 {[%emt 0:00:03]} Rc7 {[%emt 0:00:01]} 28. Nb7 {[%emt 0:00:02]} Ke7 {[%emt 0:00:04]} 29. Nxd6 {[%emt 0:00:03]} Kxd6 {[%emt 0:00:01]} 30. Bf4+ {[%emt 0:00:02]} Nxf4 {[%emt 0:00:02]} 31. g3 {[%emt 0:00:04]} Nd5 {[%emt 0:00:01]} 32. a3 {[%emt 0:00:02]} Rxc6 {[%emt 0:00:02]} 0-1

[Event "Austria Championship Blitz 2024"]
[Site "Innsbruck"]
[Date "2024.06.01"]
[Round "10.12"]
[White "Schranzhofer, Marco"]
[Black "Kranzl, Peter"]
[Result "1/2-1/2"]
[ECO "B17"]
[WhiteElo "1908"]
[BlackElo "2157"]
[Annotator "RC"]
[PlyCount "59"]
[EventDate "2024.06.01"]
[EventType "swiss"]
[EventCountry "AUT"]
[SourceTitle "playchess.com"]
[Source "ChessBase"]
[SourceQuality "1"]
[TimeControl "180+2"]

1. e4 {[%emt 0:00:01]} c6 {[%emt 0:00:01]} 2. d4 {[%emt 0:00:01]} d5 {[%emt 0:00:01]} 3. Nc3 {[%emt 0:00:01]} dxe4 {[%emt 0:00:01]} 4. Nxe4 {[%emt 0:00:01]} Nd7 {[%emt 0:00:00]} 5. Nf3 {[%emt 0:00:13]} Ndf6 {[%emt 0:00:02]} 6. Ng3 {[%emt 0:00:03]} g6 {[%emt 0:00:05]} 7. c3 {[%emt 0:00:02]} Bg7 {[%emt 0:00:02]} 8. Be2 {[%emt 0:00:01]} Nh6 {[%emt 0:00:01]} 9. Bxh6 {[%emt 0:00:04]} Bxh6 {[%emt 0:00:02]} 10. O-O {[%emt 0:00:02]} O-O {[%emt 0:00:03]} 11. Re1 {[%emt 0:00:04]} Nd5 {[%emt 0:00:07]} 12. Bc4 {[%emt 0:00:05]} Be6 {[%emt 0:00:11]} 13. Bxd5 {[%emt 0:00:45]} Bxd5 {[%emt 0:00:08]} 14. Qe2 {[%emt 0:00:02]} Re8 {[%emt 0:00:06]} 15. h3 {[%emt 0:00:21]} a5 {[%emt 0:00:07]} 16. h4 {[%emt 0:00:09]} a4 {[%emt 0:00:17]} 17. a3 {[%emt 0:00:01]} Qd6 {[%emt 0:00:14]} 18. Ng5 {[%emt 0:00:12]} Bxg5 {[%emt 0:00:28]} 19. hxg5 {[%emt 0:00:01]} Qf4 {[%emt 0:00:21]} 20. Qe3 {[%emt 0:00:02]} Qg4 {[%emt 0:00:02]} 21. Rac1 {[%emt 0:00:26]} b5 {[%emt 0:00:05]} 22. Qe5 {[%emt 0:00:13]} Rac8 {[%emt 0:00:09]} 23. f3 {[%emt 0:00:15]} Qd7 {[%emt 0:00:16]} 24. Ne4 {[%emt 0:00:09]} Bxe4 {[%emt 0:00:03]} 25. Rxe4 {[%emt 0:00:05]} Qd6 {[%emt 0:00:05]} 26. Rce1 {[%emt 0:00:03]} Qxe5 {[%emt 0:00:01]} 27. Rxe5 {[%emt 0:00:01]} e6 {[%emt 0:00:08]} 28. f4 {[%emt 0:00:06]} Red8 {[%emt 0:00:01]} 29. Kf2 {[%emt 0:00:02]} Rd5 {[%emt 0:00:07]} 30. Rxd5 {[%emt 0:00:05]} 1/2-1/2

[Event "Austria Championship Blitz 2024"]
[Site "Innsbruck"]
[Date "2024.06.01"]
[Round "10.13"]
[White "Blaas, Hansjoerg"]
[Black "Keferboeck, Jewgeni"]
[Result "1-0"]
[ECO "B92"]
[WhiteElo "2222"]
[BlackElo "1957"]
[Annotator "RC"]
[PlyCount "79"]
[EventDate "2024.06.01"]
[EventType "swiss"]
[EventCountry "AUT"]
[SourceTitle "playchess.com"]
[Source "ChessBase"]
[SourceQuality "1"]
[TimeControl "180+2"]

1. e4 {[%emt 0:00:00]} c5 {[%emt 0:00:00]} 2. Nf3 {[%emt 0:00:01]} d6 {[%emt 0:00:01]} 3. d4 {[%emt 0:00:01]} cxd4 {[%emt 0:00:01]} 4. Nxd4 {[%emt 0:00:01]} Nf6 {[%emt 0:00:01]} 5. Nc3 {[%emt 0:00:02]} a6 {[%emt 0:00:00]} 6. Be2 {[%emt 0:00:06]} e5 {[%emt 0:00:01]} 7. Nb3 {[%emt 0:00:04]} Be7 {[%emt 0:00:01]} 8. O-O {[%emt 0:00:02]} O-O {[%emt 0:00:02]} 9. f3 {[%emt 0:00:05]} Be6 {[%emt 0:00:12]} 10. Nd5 {[%emt 0:00:08]} Nxd5 {[%emt 0:00:09]} 11. exd5 {[%emt 0:00:02]} Bf5 {[%emt 0:00:01]} 12. Be3 {[%emt 0:00:14]} Bg5 {[%emt 0:00:10]} 13. Bf2 {[%emt 0:00:03]} Nd7 {[%emt 0:00:05]} 14. c4 {[%emt 0:00:09]} Rc8 {[%emt 0:00:11]} 15. a4 {[%emt 0:00:17]} Bg6 {[%emt 0:01:07]} 16. a5 {[%emt 0:00:05]} f5 {[%emt 0:00:03]} 17. g3 {[%emt 0:00:27]} f4 {[%emt 0:00:12]} 18. g4 {[%emt 0:00:09]} e4 {[%emt 0:00:01]} 19. Bd4 {[%emt 0:00:16]} e3 {[%emt 0:00:10]} 20. Rc1 {[%emt 0:00:07]} Bh4 {[%emt 0:00:01]} 21. c5 {[%emt 0:00:11]} Bf2+ {[%emt 0:00:01]} 22. Kg2 {[%emt 0:00:11]} dxc5 {[%emt 0:00:08]} 23. Nxc5 {[%emt 0:00:13]} Nxc5 {[%emt 0:00:03]} 24. Bxc5 {[%emt 0:00:04]} Rf7 {[%emt 0:00:14]} 25. d6 {[%emt 0:00:07]} Rd7 {[%emt 0:00:01]} 26. Bc4+ {[%emt 0:00:07]} Bf7 {[%emt 0:00:05]} 27. Bxf7+ {[%emt 0:00:44]} Rxf7 28. Qd5 {[%emt 0:00:00]} Qd7 {[%emt 0:00:05]} 29. b4 {[%emt 0:00:00]} Kh8 {[%emt 0:00:14]} 30. Rfd1 {[%emt 0:00:00]} e2 {[%emt 0:00:16]} 31. Kxf2 {[%emt 0:00:00]} exd1=Q 32. Rxd1 {[%emt 0:00:10]} h6 {[%emt 0:00:12]} 33. Re1 {[%emt 0:00:00]} Re8 {[%emt 0:00:02]} 34. Rd1 {[%emt 0:00:00]} Rd8 {[%emt 0:00:07]} 35. Rd4 {[%emt 0:00:00]} Rdf8 {[%emt 0:00:04]} 36. Re4 {[%emt 0:00:01]} Qc6 {[%emt 0:00:03]} 37. Qxc6 {[%emt 0:00:02]} bxc6 {[%emt 0:00:01]} 38. d7 {[%emt 0:00:03]} Rd8 {[%emt 0:00:01]} 39. Re8+ {[%emt 0:00:01]} Rf8 {[%emt 0:00:03]} 40. Rxf8+ {[%emt 0:00:02]} 1-0